fUSD/lending_fUSD_20250504
["ID","MTS","AMOUNT","RATE_DAILY","PERIOD"]
[359808777,1746357042230,-450.0,0.00019726,2]
[359808779,1746357042240,-290.65404964,0.00019726,2]
[359808782,1746357042249,-450.0,0.00019726,2]
[359808783,1746357042259,-450.0,0.00019726,2]
[359808786,1746357042272,-803.25,0.00019726,2]
[359808787,1746357042281,-450.0,0.00019726,2]
[359808790,1746357042292,-450.0,0.00019726,2]
[359808791,1746357042301,-450.0,0.00019726,2]
[359808793,1746357042311,-820.06,0.00019726,2]
[359808796,1746357042320,-450.0,0.00019726,2]
[359808798,1746357042331,-450.0,0.00019726,2]
[359808800,1746357042340,-450.0,0.00019726,2]
[359808802,1746357042351,-450.0,0.00019726,2]
[359808804,1746357042360,-450.0,0.00019726,2]
[359808806,1746357042370,-450.0,0.00019726,2]
[359808808,1746357042379,-483.22,0.00019726,2]
[359808810,1746357042388,-450.0,0.00019726,2]
[359808812,1746357042398,-450.0,0.00019726,2]
[359808814,1746357042409,-450.0,0.00019726,2]
[359808816,1746357042419,-553.23414522,0.00019726,2]
[359808817,1746357042429,-453.92830837,0.00019726,2]
[359808820,1746357042440,-450.0,0.00019726,2]
[359808822,1746357042450,-214.56592558,0.00019726,2]
[359808823,1746357042459,-482.35,0.00019726,2]
[359808825,1746357042469,-450.0,0.00019726,2]
[359808828,1746357042479,-450.0,0.00019726,2]
[359808829,1746357042489,-450.0,0.00019726,2]
[359808832,1746357042499,-502.01,0.00019726,2]
[359808833,1746357042508,-450.0,0.00019726,2]
[359808835,1746357042518,-549.32,0.00019726,2]
[359808837,1746357042528,-450.0,0.00019726,2]
[359808839,1746357042537,-506.73,0.00019726,2]
[359808841,1746357042546,-450.0,0.00019726,2]
[359808843,1746357042556,-467.32488061,0.00019726,2]
[359808845,1746357042565,-450.0,0.00019726,2]
[359808847,1746357042575,-635.52,0.00019726,2]
[359808849,1746357042585,-450.0,0.00019726,2]
[359808851,1746357042594,-450.0,0.00019726,2]
[359808853,1746357042604,-450.0,0.00019726,2]
[359808855,1746357042613,-450.0,0.00019726,2]
[359808857,1746357042623,-450.0,0.00019726,2]
[359808859,1746357042632,-450.0,0.00019726,2]
[359808862,1746357042642,-450.0,0.00019726,2]
[359808864,1746357042652,-450.0,0.00019726,2]
[359808866,1746357042662,-450.0,0.00019726,2]
[359808869,1746357042671,-450.0,0.00019726,2]
[359808872,1746357042680,-2416.14,0.00019726,2]
[359808874,1746357042689,-450.0,0.00019726,2]
[359808876,1746357042699,-500.0,0.00019726,2]
[359808900,1746357042902,-450.0,0.00019726,2]
[359808902,1746357042912,-220.55746632,0.00019726,2]
[359808904,1746357042921,-450.0,0.00019726,2]
[359808906,1746357042930,-450.0,0.00019726,2]
[359808908,1746357042940,-500.0,0.00019726,2]
[359808910,1746357042949,-150.0,0.00019726,2]
[359808912,1746357042958,-453.79042884,0.00019726,2]
[359808914,1746357042967,-450.0,0.00019726,2]
[359808916,1746357042977,-450.0,0.00019726,2]
[359808918,1746357042986,-450.0,0.00019726,2]
[359808920,1746357042995,-550.85,0.00019726,2]
[359808922,1746357043004,-450.0,0.00019726,2]
[359808924,1746357043013,-450.0,0.00019726,2]
[359808926,1746357043023,-450.0,0.00019726,2]
[359808928,1746357043032,-450.0,0.00019726,2]
[359808930,1746357043041,-450.0,0.00019726,2]
[359808932,1746357043050,-2517.04,0.00019726,2]
[359808934,1746357043059,-450.0,0.00019726,2]
[359808936,1746357043068,-450.0,0.00019726,2]
[359808938,1746357043078,-450.0,0.00019726,2]
[359808941,1746357043088,-450.0,0.00019726,2]
[359808943,1746357043098,-450.0,0.00019726,2]
[359808945,1746357043107,-450.0,0.00019726,2]
[359808947,1746357043116,-450.0,0.00019726,2]
[359808948,1746357043126,-1876.35,0.00019726,2]
[359808949,1746357043135,-450.0,0.00019726,2]
[359808950,1746357043144,-450.0,0.00019726,2]
[359808951,1746357043153,-450.0,0.00019726,2]
[359808952,1746357043162,-982.96,0.00019726,2]
[359808953,1746357043171,-658.76,0.00019726,2]
[359808954,1746357043181,-450.0,0.00019726,2]
[359808955,1746357043190,-463.46118577,0.00019726,2]
[359808956,1746357043199,-508.86567186,0.00019726,2]
[359808957,1746357043208,-450.0,0.00019726,2]
[359808958,1746357043217,-450.0,0.00019726,2]
[359808960,1746357043226,-450.0,0.00019726,2]
[359808962,1746357043235,-450.0,0.00019726,2]
[359808964,1746357043244,-450.0,0.00019726,2]
[359808966,1746357043253,-534.29,0.00019726,2]
[359808968,1746357043263,-450.0,0.00019726,2]
[359808970,1746357043276,-2060.85,0.00019726,2]
[359808972,1746357043285,-450.0,0.00019726,2]
[359808974,1746357043294,-450.0,0.00019726,2]
[359808976,1746357043304,-450.0,0.00019726,2]
[359808978,1746357043314,-736.73,0.00019726,2]
[359808980,1746357043324,-450.0,0.00019726,2]
[359808982,1746357043333,-450.0,0.00019726,2]
[359808983,1746357043344,-450.0,0.00019726,2]
[359808985,1746357043353,-450.0,0.00019726,2]
[359808987,1746357043363,-450.0,0.00019726,2]
[359808990,1746357043372,-450.0,0.00019726,2]
[359808993,1746357043382,-734.93,0.00019726,2]
[359808995,1746357043392,-44838.52,0.00019726,2]
[359808998,1746357043402,-450.0,0.00019726,2]
[359809001,1746357043411,-450.0,0.00019726,2]
[359809003,1746357043420,-450.0,0.00019726,2]
[359809005,1746357043430,-548.16,0.00019726,2]
[359809007,1746357043439,-450.0,0.00019726,2]
[359809009,1746357043448,-450.0,0.00019726,2]
[359809011,1746357043458,-450.0,0.00019726,2]
[359809014,1746357043468,-549.64,0.00019726,2]
[359809016,1746357043477,-450.0,0.00019726,2]
[359809018,1746357043487,-455.72,0.00019726,2]
[359809020,1746357043496,-545.43,0.00019726,2]
[359809022,1746357043505,-494.77,0.00019726,2]
[359809024,1746357043515,-450.0,0.00019726,2]
[359809026,1746357043524,-450.0,0.00019726,2]
[359809028,1746357043534,-450.0,0.00019726,2]
[359809030,1746357043543,-450.0,0.00019726,2]
[359809032,1746357043553,-522.96,0.00019726,2]
[359809034,1746357043562,-450.0,0.00019726,2]
[359809036,1746357043571,-450.0,0.00019726,2]
[359809038,1746357043581,-1019.57,0.00019726,2]
[359809040,1746357043590,-450.0,0.00019726,2]
[359809042,1746357043599,-450.0,0.00019726,2]
[359809044,1746357043608,-450.0,0.00019726,2]
[359809046,1746357043617,-450.0,0.00019726,2]
[359809048,1746357043626,-450.0,0.00019726,2]
[359809050,1746357043636,-2353.14,0.00019726,2]
[359809052,1746357043645,-450.0,0.00019726,2]
[359809054,1746357043654,-450.0,0.00019726,2]
[359809056,1746357043664,-450.0,0.00019726,2]
[359809058,1746357043673,-450.0,0.00019726,2]
[359809060,1746357043682,-450.0,0.00019726,2]
[359809062,1746357043691,-450.0,0.00019726,2]
[359809064,1746357043700,-867.94,0.00019726,2]
[359809066,1746357043709,-450.0,0.00019726,2]
[359809068,1746357043719,-478.26,0.00019726,2]
[359809070,1746357043727,-450.0,0.00019726,2]
[359809072,1746357043737,-10350.47,0.00019726,2]
[359809074,1746357043746,-450.0,0.00019726,2]
[359809076,1746357043756,-450.0,0.00019726,2]
[359809078,1746357043765,-450.0,0.00019726,2]
[359809080,1746357043774,-450.0,0.00019726,2]
[359809082,1746357043783,-450.0,0.00019726,2]
[359809084,1746357043792,-533.06579717,0.00019726,2]
[359809086,1746357043801,-591.19,0.00019726,2]
[359809088,1746357043810,-450.0,0.00019726,2]
[359809090,1746357043820,-450.0,0.00019726,2]
[359809092,1746357043829,-450.0,0.00019726,2]
[359809094,1746357043838,-450.0,0.00019726,2]
[359809096,1746357043848,-806.32,0.00019726,2]
[359809098,1746357043857,-450.0,0.00019726,2]
[359809100,1746357043867,-450.0,0.00019726,2]
[359809102,1746357043876,-693.62,0.00019726,2]
[359809104,1746357043885,-450.0,0.00019726,2]
[359809106,1746357043896,-589.81,0.00019726,2]
[359809108,1746357043905,-450.0,0.00019726,2]
[359809110,1746357043914,-450.0,0.00019726,2]
[359809112,1746357043923,-558.25,0.00019726,2]
[359809114,1746357043933,-450.0,0.00019726,2]
[359809116,1746357043942,-450.0,0.00019726,2]
[359809118,1746357043951,-450.0,0.00019726,2]
[359809120,1746357043960,-5999.6,0.00019726,2]
[359809122,1746357043969,-450.0,0.00019726,2]
[359809124,1746357043978,-450.0,0.00019726,2]
[359809126,1746357043987,-450.0,0.00019726,2]
[359809128,1746357043996,-556.01,0.00019726,2]
[359809130,1746357044006,-450.0,0.00019726,2]
[359809132,1746357044014,-450.0,0.00019726,2]
[359809134,1746357044023,-450.0,0.00019726,2]
[359809136,1746357044033,-612.513842,0.00019726,2]
[359809138,1746357044042,-450.0,0.00019726,2]
[359809140,1746357044051,-450.0,0.00019726,2]
[359809142,1746357044061,-450.0,0.00019726,2]
[359809144,1746357044070,-3228.24,0.00019726,2]
[359809146,1746357044080,-406.92007388,0.00019726,2]
[359809148,1746357044089,-765.6423,0.00019726,2]
[359809150,1746357044099,-450.0,0.00019726,2]
[359809152,1746357044108,-484.24302524,0.00019726,2]
[359809154,1746357044117,-450.0,0.00019726,2]
[359809156,1746357044126,-450.0,0.00019726,2]
[359809158,1746357044136,-454.00953404,0.00019726,2]
[359809160,1746357044145,-450.0,0.00019726,2]
[359809161,1746357044154,-450.0,0.00019726,2]
[359809164,1746357044167,-450.0,0.00019726,2]
[359809166,1746357044177,-499.22,0.00019726,2]
[359809168,1746357044186,-450.0,0.00019726,2]
[359809170,1746357044196,-450.0,0.00019726,2]
[359809172,1746357044205,-450.0,0.00019726,2]
[359809174,1746357044214,-450.0,0.00019726,2]
[359809176,1746357044223,-450.0,0.00019726,2]
[359809178,1746357044233,-450.0,0.00019726,2]
[359809180,1746357044242,-450.0,0.00019726,2]
[359809182,1746357044251,-628.17,0.00019726,2]
[359809184,1746357044260,-466.94,0.00019726,2]
[359809186,1746357044271,-725.65,0.00019726,2]
[359809188,1746357044280,-450.0,0.00019726,2]
[359809190,1746357044290,-450.0,0.00019726,2]
[359809192,1746357044299,-450.0,0.00019726,2]
[359809194,1746357044308,-469.9,0.00019726,2]
[359809196,1746357044319,-450.0,0.00019726,2]
[359809198,1746357044332,-450.0,0.00019726,2]
[359809200,1746357044342,-450.0,0.00019726,2]
[359809202,1746357044352,-450.0,0.00019726,2]
[359809204,1746357044362,-529.24535682,0.00019726,2]
[359809206,1746357044372,-450.0,0.00019726,2]
[359809208,1746357044381,-450.0,0.00019726,2]
[359809210,1746357044390,-510.75,0.00019726,2]
[359809212,1746357044399,-450.0,0.00019726,2]
[359809214,1746357044408,-450.0,0.00019726,2]
[359809216,1746357044417,-450.0,0.00019726,2]
[359809218,1746357044427,-208.67202494,0.00019726,2]
[359809220,1746357044436,-450.0,0.00019726,2]
[359809223,1746357044447,-450.0,0.00019726,2]
[359809225,1746357044456,-450.0,0.00019726,2]
[359809227,1746357044465,-2711.27,0.00019726,2]
[359809229,1746357044474,-450.0,0.00019726,2]
[359809231,1746357044483,-450.0,0.00019726,2]
[359809233,1746357044493,-450.0,0.00019726,2]
[359809235,1746357044502,-450.0,0.00019726,2]
[359809237,1746357044511,-450.0,0.00019726,2]
[359809239,1746357044521,-450.0,0.00019726,2]
[359809241,1746357044530,-450.0,0.00019726,2]
[359809243,1746357044539,-450.0,0.00019726,2]
[359809245,1746357044549,-450.0,0.00019726,2]
[359809247,1746357044557,-450.0,0.00019726,2]
[359809249,1746357044566,-450.0,0.00019726,2]
[359809251,1746357044575,-450.0,0.00019726,2]
[359809253,1746357044584,-450.0,0.00019726,2]
[359809255,1746357044594,-450.0,0.00019726,2]
[359809257,1746357044604,-450.0,0.00019726,2]
[359809259,1746357044613,-450.0,0.00019726,2]
[359809261,1746357044622,-450.0,0.00019726,2]
[359809263,1746357044631,-450.0,0.00019726,2]
[359809265,1746357044640,-450.0,0.00019726,2]
[359809267,1746357044649,-450.0,0.00019726,2]
[359809269,1746357044658,-450.0,0.00019726,2]
[359809271,1746357044667,-460.09,0.00019726,2]
[359809273,1746357044676,-450.0,0.00019726,2]
[359809275,1746357044686,-1079.22,0.00019726,2]
[359809277,1746357044695,-450.0,0.00019726,2]
[359809279,1746357044704,-450.0,0.00019726,2]
[359809281,1746357044714,-450.0,0.00019726,2]
[359809283,1746357044724,-450.0,0.00019726,2]
[359809285,1746357044733,-450.0,0.00019726,2]
[359809287,1746357044742,-500.0,0.00019726,2]
[359809289,1746357044751,-450.0,0.00019726,2]
[359809291,1746357044760,-450.0,0.00019726,2]
[359809293,1746357044769,-160.44791132,0.00019726,2]
[359809295,1746357044779,-450.0,0.00019726,2]
[359809297,1746357044788,-450.0,0.00019726,2]
[359809299,1746357044798,-450.0,0.00019726,2]
[359809301,1746357044807,-450.0,0.00019726,2]
[359809303,1746357044817,-150.0,0.00019726,2]
[359809305,1746357044826,-55070.31,0.00019726,2]
[359809307,1746357044836,-450.0,0.00019726,2]
[359809309,1746357044846,-450.0,0.00019726,2]
[359809311,1746357044855,-527.65,0.00019726,2]
[359809313,1746357044864,-450.0,0.00019726,2]
[359809315,1746357044874,-450.0,0.00019726,2]
[359809317,1746357044884,-484.38,0.00019726,2]
[359809319,1746357044893,-450.0,0.00019726,2]
[359809321,1746357044902,-450.0,0.00019726,2]
[359809323,1746357044911,-450.0,0.00019726,2]
[359809325,1746357044921,-450.0,0.00019726,2]
[359809327,1746357044930,-450.0,0.00019726,2]
[359809329,1746357044940,-450.0,0.00019726,2]
[359809331,1746357044949,-450.0,0.00019726,2]
[359809333,1746357044959,-450.0,0.00019726,2]
[359809334,1746357044968,-450.0,0.00019726,2]
[359809335,1746357044977,-450.0,0.00019726,2]
[359809336,1746357044987,-1088.38,0.00019726,2]
[359809337,1746357044996,-450.0,0.00019726,2]
[359809338,1746357045005,-470.48,0.00019726,2]
[359809339,1746357045015,-454.91,0.00019726,2]
[359809340,1746357045025,-450.0,0.00019726,2]
[359809341,1746357045035,-450.0,0.00019726,2]
[359809342,1746357045044,-482.32,0.00019726,2]
[359809343,1746357045054,-450.0,0.00019726,2]
[359809344,1746357045063,-466.11,0.00019726,2]
[359809345,1746357045073,-450.0,0.00019726,2]
[359809346,1746357045082,-450.0,0.00019726,2]
[359809347,1746357045092,-422.57339251,0.00019726,2]
[359809348,1746357045102,-450.0,0.00019726,2]
[359809349,1746357045111,-450.0,0.00019726,2]
[359809351,1746357045120,-223.8,0.00019726,2]
[359809353,1746357045130,-457.08517061,0.00019748,2]
[359809355,1746357045139,-166.91972549,0.0001975,23]
[359809357,1746357045148,-500.0,0.00019752,2]
[359809359,1746357045159,-500.0,0.00019752,2]
[359809361,1746357045168,-500.0,0.00019752,2]
[359809369,1746357045227,-500.0,0.00019752,2]
[359809371,1746357045237,-450.0,0.00019753,2]
[359809372,1746357045247,-450.0,0.00019753,2]
[359809373,1746357045257,-498.98,0.00019753,2]
[359809374,1746357045267,-450.0,0.00019753,2]
[359809375,1746357045279,-450.0,0.00019753,2]
[359809376,1746357045288,-450.0,0.00019753,2]
[359809377,1746357045297,-450.0,0.00019753,2]
[359809378,1746357045307,-450.0,0.00019753,2]
[359809379,1746357045317,-450.0,0.00019753,2]
[359809380,1746357045326,-450.0,0.00019753,2]
[359809382,1746357045336,-450.0,0.00019753,2]
[359809384,1746357045345,-971.51,0.00019753,2]
[359809386,1746357045355,-450.0,0.00019753,2]
[359809388,1746357045364,-509.92,0.00019753,2]
[359809390,1746357045373,-450.0,0.00019753,2]
[359809392,1746357045382,-368.72876082,0.00019753,2]
[359809394,1746357045391,-450.0,0.00019753,2]
[359809396,1746357045401,-450.0,0.00019753,2]
[359809398,1746357045410,-450.0,0.00019753,2]
[359809400,1746357045419,-450.0,0.00019753,2]
[359809402,1746357045428,-450.0,0.00019753,2]
[359809404,1746357045437,-567.04,0.00019753,2]
[359809407,1746357045449,-492.8,0.00019753,2]
[359809409,1746357045459,-450.0,0.00019753,2]
[359809411,1746357045468,-450.0,0.00019753,2]
[359809413,1746357045478,-521.64,0.00019753,2]
[359809415,1746357045487,-450.0,0.00019753,2]
[359809418,1746357045496,-239.34,0.00019753,2]
[359809421,1746357045506,-450.0,0.00019753,2]
[359809425,1746357045516,-450.0,0.00019753,2]
[359809427,1746357045525,-521.58,0.00019753,2]
[359809429,1746357045534,-298.56,0.00019753,2]
[359809431,1746357045543,-450.0,0.00019753,2]
[359809434,1746357045552,-390.52,0.00019753,2]
[359809436,1746357045562,-693.3,0.00019753,2]
[359809438,1746357045571,-450.0,0.00019753,2]
[359809440,1746357045580,-450.0,0.00019753,2]
[359809442,1746357045589,-450.0,0.00019753,2]
[359809444,1746357045598,-596.83058126,0.00019753,2]
[359809446,1746357045607,-450.0,0.00019753,2]
[359809448,1746357045616,-176.68,0.00019753,2]
[359809450,1746357045625,-450.0,0.00019753,2]
[359809452,1746357045634,-208.41,0.00019753,2]
[359809454,1746357045643,-228.46,0.00019753,2]
[359809456,1746357045652,-450.0,0.00019753,2]
[359809458,1746357045662,-237.17,0.00019753,2]
[359809460,1746357045671,-562.42,0.00019753,2]
[359809462,1746357045679,-248.35,0.00019753,2]
[359809464,1746357045688,-1281.13,0.00019753,2]
[359809466,1746357045697,-450.0,0.00019753,2]
[359809468,1746357045707,-222.91,0.00019753,2]
[359809470,1746357045716,-431.8,0.00019753,2]
[359809472,1746357045725,-606.32,0.00019753,2]
[359809474,1746357045734,-257.84,0.00019753,2]
[359809476,1746357045743,-450.0,0.00019753,2]
[359809478,1746357045752,-450.0,0.00019753,2]
[359809480,1746357045761,-191.82,0.00019753,2]
[359809482,1746357045770,-489.93,0.00019753,2]
[359809484,1746357045779,-1241.63,0.00019753,2]
[359809486,1746357045788,-161.92,0.00019753,2]
[359809487,1746357045797,-450.0,0.00019753,2]
[359809489,1746357045806,-450.0,0.00019753,2]
[359809491,1746357045815,-415.04,0.00019753,2]
[359809493,1746357045824,-410.18,0.00019753,2]
[359809495,1746357045833,-261.73,0.00019753,2]
[359809497,1746357045842,-224.13,0.00019753,2]
[359809499,1746357045851,-584.92,0.00019753,2]
[359809501,1746357045860,-353.95,0.00019753,2]
[359809503,1746357045870,-231.68,0.00019753,2]
[359809505,1746357045879,-431.25,0.00019753,2]
[359809507,1746357045888,-559.68,0.00019753,2]
[359809509,1746357045897,-301.92,0.00019753,2]
[359809511,1746357045906,-210.22,0.00019753,2]
[359809513,1746357045916,-253.25,0.00019753,2]
[359809515,1746357045925,-173.76,0.00019753,2]
[359809517,1746357045934,-450.0,0.00019753,2]
[359809519,1746357045944,-412.63,0.00019753,2]
[359809521,1746357045953,-152.67,0.00019753,2]
[359809523,1746357045962,-450.0,0.00019753,2]
[359809525,1746357045970,-248.75,0.00019753,2]
[359809527,1746357045979,-195.07,0.00019753,2]
[359809529,1746357045988,-450.0,0.00019753,2]
[359809531,1746357045997,-450.0,0.00019753,2]
[359809533,1746357046006,-217.51,0.00019753,2]
[359809535,1746357046015,-450.0,0.00019753,2]
[359809537,1746357046024,-450.0,0.00019753,2]
[359809539,1746357046034,-273.33,0.00019753,2]
[359809541,1746357046043,-377.42,0.00019753,2]
[359809543,1746357046052,-257.68,0.00019753,2]
[359809545,1746357046061,-330.87,0.00019753,2]
[359809547,1746357046071,-351.16,0.00019753,2]
[359809549,1746357046080,-450.0,0.00019753,2]
[359809551,1746357046089,-247.93,0.00019753,2]
[359809553,1746357046099,-450.0,0.00019753,2]
[359809555,1746357046108,-450.0,0.00019753,2]
[359809557,1746357046117,-450.0,0.00019753,2]
[359809559,1746357046127,-579.83246673,0.00019753,2]
[359809561,1746357046136,-450.0,0.00019753,2]
[359809563,1746357046145,-450.0,0.00019753,2]
[359809565,1746357046154,-2285.06,0.00019753,2]
[359809567,1746357046164,-450.0,0.00019753,2]
[359809569,1746357046173,-361.59,0.00019753,2]
[359809571,1746357046182,-450.0,0.00019753,2]
[359809573,1746357046191,-450.0,0.00019753,2]
[359809575,1746357046200,-450.0,0.00019753,2]
[359809577,1746357046209,-490.21005319,0.00019753,2]
[359809579,1746357046218,-803.25,0.00019753,2]
[359809581,1746357046227,-465.16152851,0.00019753,2]
[359809583,1746357046236,-471.40994157,0.00019753,2]
[359809585,1746357046245,-501.32,0.00019753,2]
[359809587,1746357046254,-820.06,0.00019753,2]
[359809589,1746357046263,-471.94510149,0.00019753,2]
[359809591,1746357046272,-475.20590651,0.00019753,2]
[359809593,1746357046285,-450.0,0.00019753,2]
[359809595,1746357046294,-450.0,0.00019753,2]
[359809597,1746357046303,-450.0,0.00019753,2]
[359809599,1746357046313,-450.0,0.00019753,2]
[359809601,1746357046322,-209.58,0.00019753,2]
[359809603,1746357046331,-450.0,0.00019753,2]
[359809605,1746357046341,-526.31632499,0.00019753,2]
[359809607,1746357046350,-502.01,0.00019753,2]
[359809609,1746357046363,-273.85735025,0.00019753,2]
[359809611,1746357046373,-450.0,0.00019753,2]
[359809613,1746357046382,-506.73,0.00019753,2]
[359809615,1746357046392,-450.0,0.00019753,2]
[359809617,1746357046401,-635.52,0.00019753,2]
[359809619,1746357046410,-471.55,0.00019753,2]
[359809621,1746357046419,-480.07862017,0.00019753,2]
[359809623,1746357046428,-172.43,0.00019753,2]
[359809625,1746357046437,-450.0,0.00019753,2]
[359809627,1746357046446,-553.69,0.00019753,2]
[359809629,1746357046455,-192.73,0.00019753,2]
[359809631,1746357046464,-2416.14,0.00019753,2]
[359809633,1746357046473,-456.34209792,0.00019753,2]
[359809635,1746357046482,-450.0,0.00019753,2]
[359809637,1746357046491,-450.0,0.00019753,2]
[359809639,1746357046500,-488.82129883,0.00019753,2]
[359809641,1746357046509,-450.0,0.00019753,2]
[359809643,1746357046518,-2517.04,0.00019753,2]
[359809645,1746357046527,-450.0,0.00019753,2]
[359809647,1746357046536,-480.0833098,0.00019753,2]
[359809649,1746357046545,-386.32607631,0.00019753,2]
[359809651,1746357046554,-1876.35,0.00019753,2]
[359809653,1746357046563,-450.0,0.00019753,2]
[359809655,1746357046572,-450.0,0.00019753,2]
[359809657,1746357046581,-982.96,0.00019753,2]
[359809659,1746357046589,-556.87,0.00019753,2]
[359809661,1746357046598,-658.76,0.00019753,2]
[359809663,1746357046607,-472.35012035,0.00019753,2]
[359809665,1746357046617,-450.0,0.00019753,2]
[359809667,1746357046626,-487.00270582,0.00019753,2]
[359809669,1746357046635,-2060.85,0.00019753,2]
[359809671,1746357046644,-450.0,0.00019753,2]
[359809673,1746357046653,-450.0,0.00019753,2]
[359809675,1746357046662,-736.73,0.00019753,2]
[359809677,1746357046671,-450.0,0.00019753,2]
[359809679,1746357046680,-263.35,0.00019753,2]
[359809681,1746357046689,-450.0,0.00019753,2]
[359809683,1746357046698,-450.0,0.00019753,2]
[359809685,1746357046708,-734.93,0.00019753,2]
[359809687,1746357046717,-44838.52,0.00019753,2]
[359809689,1746357046727,-450.0,0.00019753,2]
[359809691,1746357046736,-549.64,0.00019753,2]
[359809693,1746357046745,-191.31,0.00019753,2]
[359809695,1746357046754,-545.43,0.00019753,2]
[359809697,1746357046763,-450.0,0.00019753,2]
[359809699,1746357046772,-433.12,0.00019753,2]
[359809701,1746357046781,-450.0,0.00019753,2]
[359809703,1746357046790,-496.84236692,0.00019753,2]
[359809704,1746357046799,-450.0,0.00019753,2]
[359809706,1746357046809,-208.72,0.00019753,2]
[359809708,1746357046817,-1019.57,0.00019753,2]
[359809710,1746357046826,-265.6,0.00019753,2]
[359809712,1746357046835,-281.15,0.00019753,2]
[359809714,1746357046844,-523.95698963,0.00019753,2]
[359809716,1746357046853,-2353.14,0.00019753,2]
[359809718,1746357046862,-450.0,0.00019753,2]
[359809720,1746357046871,-450.0,0.00019753,2]
[359809722,1746357046880,-867.94,0.00019753,2]
[359809724,1746357046890,-10350.47,0.00019753,2]
[359809726,1746357046899,-459.30873225,0.00019753,2]
[359809728,1746357046908,-450.0,0.00019753,2]
[359809730,1746357046917,-450.0,0.00019753,2]
[359809732,1746357046927,-806.32,0.00019753,2]
[359809734,1746357046936,-450.0,0.00019753,2]
[359809737,1746357046946,-693.62,0.00019753,2]
[359809739,1746357046955,-450.0,0.00019753,2]
[359809741,1746357046964,-589.81,0.00019753,2]
[359809743,1746357046973,-212.76,0.00019753,2]
[359809745,1746357046982,-5999.6,0.00019753,2]
[359809747,1746357046991,-450.0,0.00019753,2]
[359809749,1746357047000,-450.0,0.00019753,2]
[359809751,1746357047008,-209.18,0.00019753,2]
[359809753,1746357047018,-450.0,0.00019753,2]
[359809755,1746357047027,-540.11099074,0.00019753,2]
[359809757,1746357047036,-3228.24,0.00019753,2]
[359809759,1746357047046,-231.36,0.00019753,2]
[359809761,1746357047055,-494.58,0.00019753,2]
[359809763,1746357047065,-499.22,0.00019753,2]
[359809765,1746357047075,-450.0,0.00019753,2]
[359809767,1746357047084,-493.89,0.00019753,2]
[359809769,1746357047093,-450.0,0.00019753,2]
[359809771,1746357047102,-450.0,0.00019753,2]
[359809773,1746357047113,-450.0,0.00019753,2]
[359809775,1746357047124,-628.17,0.00019753,2]
[359809777,1746357047133,-725.65,0.00019753,2]
[359809778,1746357047143,-450.0,0.00019753,2]
[359809779,1746357047153,-450.0,0.00019753,2]